fUSD/lending_fUSD_20250519
["ID","MTS","AMOUNT","RATE_DAILY","PERIOD"]
[361663427,1747677049072,-500.0,0.00013699,2]
[361663428,1747677049081,-2661.02578107,0.00013699,2]
[361663429,1747677049091,-2661.02578107,0.00013699,2]
[361663430,1747677049100,-500.0,0.00013699,2]
[361663431,1747677049110,-2661.02578107,0.00013699,2]
[361663432,1747677049119,-2661.02578107,0.00013699,2]
[361663433,1747677049129,-2661.02578107,0.00013699,2]
[361663434,1747677049138,-2661.02578107,0.00013699,2]
[361663435,1747677049148,-2661.02578107,0.00013699,2]
[361663436,1747677049158,-2661.02578107,0.00013699,2]
[361663437,1747677049167,-2661.02578107,0.00013699,2]
[361663438,1747677049177,-2661.02578107,0.00013699,2]
[361663439,1747677049187,-2661.02578107,0.00013699,2]
[361663440,1747677049197,-2661.02578107,0.00013699,2]
[361663441,1747677049207,-2661.02578107,0.00013699,2]
[361663442,1747677049218,-2661.02578107,0.00013699,2]
[361663443,1747677049228,-2661.02578107,0.00013699,2]
[361663444,1747677049239,-2661.02578107,0.00013699,2]
[361663445,1747677049260,-2661.02578107,0.00013699,2]
[361663446,1747677049280,-2661.02578107,0.00013699,2]
[361663447,1747677049290,-2661.02578107,0.00013699,2]
[361663448,1747677049300,-2661.02578107,0.00013699,2]
[361663449,1747677049310,-2661.02578107,0.00013699,2]
[361663450,1747677049320,-2661.02578107,0.00013699,2]
[361663451,1747677049331,-2661.02578105,0.00013699,2]
[361663452,1747677049342,-2661.02578105,0.00013699,2]
[361663453,1747677049354,-2661.02578105,0.00013699,2]
[361663454,1747677049364,-2661.02578105,0.00013699,2]
[361663455,1747677049374,-2661.02578105,0.00013699,2]
[361663456,1747677049384,-2661.02578105,0.00013699,2]
[361663457,1747677049394,-2661.02578105,0.00013699,2]
[361663458,1747677049403,-2661.02578105,0.00013699,2]
[361663459,1747677049412,-2661.02578101,0.00013699,2]
[361663460,1747677049423,-15147.85,0.000137,2]
[361663461,1747677049433,-170186.82,0.000137,2]
[361663462,1747677049443,-155.206544,0.000137,2]
[361663463,1747677049453,-5260.05,0.000137,2]
[361663464,1747677049465,-5260.05,0.000137,2]
[361663465,1747677049475,-6955.63876728,0.00013748,2]
[361663466,1747677049485,-151.0,0.00013748,2]
[361663467,1747677049494,-151.0,0.00013748,2]
[361663468,1747677049504,-151.0,0.00013748,2]
[361663469,1747677049514,-222.107811,0.00013748,2]
[361663470,1747677049524,-151.0,0.00013748,2]
[361663471,1747677049533,-151.0,0.00013748,2]
[361663472,1747677049543,-151.0,0.00013748,2]
[361663473,1747677049553,-151.0,0.00013748,2]
[361663474,1747677049562,-151.0,0.00013748,2]
[361663475,1747677049571,-151.0,0.00013748,2]
[361663476,1747677049581,-1000.00009803,0.00013799,2]
[361663477,1747677049590,-45076.79691075,0.000138,2]
[361663478,1747677049599,-800.0,0.000138,3]
[361663479,1747677049609,-207.649677,0.000138,2]
[361663480,1747677049618,-558.821473,0.000138,2]
[361663481,1747677049628,-558.821473,0.000138,2]
[361663482,1747677049638,-151.0,0.000138,2]
[361663483,1747677049647,-151.0,0.000138,2]
[361663484,1747677049657,-151.0,0.000138,2]
[361663485,1747677049667,-160.012772,0.000138,2]
[361663486,1747677049676,-151.0,0.000138,2]
[361663487,1747677049685,-1199.61833172,0.00013808,2]
[361663488,1747677049695,-406.36174923,0.00013808,2]
[361663489,1747677049704,-151.0,0.00013858,2]
[361663490,1747677049714,-151.0,0.00013858,2]
[361663491,1747677049723,-158.55,0.00013858,2]
[361663492,1747677049733,-158.55,0.00013858,2]
[361663493,1747677049742,-31535.70682015,0.0001386,2]
[361663494,1747677049751,-151.0,0.0001386,2]
[361663495,1747677049761,-156.52718,0.0001386,2]
[361663496,1747677049770,-156.52718,0.0001386,2]
[361663497,1747677049779,-151.0,0.0001386,2]
[361663498,1747677049788,-1000.0,0.0001387,2]
[361663499,1747677049798,-60684.59084367,0.00013895,2]
[361663500,1747677050370,-84351.72437518,0.00013895,2]
[361663501,1747677050614,-407.08282113,0.00013895,2]
[361663502,1747677051721,-481.15517506,0.000119,2]
[361663503,1747677051731,-103777.45245202,0.00013895,2]
[361663504,1747677051817,-21052.25498684,0.00013895,2]
[361663505,1747677051829,-452.11118357,0.00013895,2]
[361663506,1747677052568,-259542.52004471,0.00013895,2]
[361663507,1747677052598,-14340.53170682,0.00013895,2]
[361663508,1747677052700,-5564.39264006,0.00013895,2]
[361663509,1747677052710,-1000.0,0.00013899,2]
[361663510,1747677052720,-1000.0,0.00013899,2]
[361663511,1747677052730,-336.3135,0.00013899,2]
[361663512,1747677052741,-2703.16427338,0.000139,2]
[361663513,1747677052750,-3541.53239869,0.00013917,2]
[361663514,1747677052760,-151.0,0.00013917,2]
[361663515,1747677052770,-170.423483,0.00013917,2]
[361663516,1747677052780,-170.423483,0.00013917,2]
[361663517,1747677052790,-720.65,0.00013917,2]
[361663518,1747677052800,-5800.0,0.00013917,2]
[361663519,1747677052810,-210.0,0.00013917,2]
[361663520,1747677052820,-210.0,0.00013917,2]
[361663521,1747677052830,-210.0,0.00013917,2]
[361663522,1747677052839,-210.0,0.00013917,2]
[361663523,1747677052849,-210.0,0.00013917,2]
[361663524,1747677052860,-210.0,0.00013917,2]
[361663525,1747677052870,-210.0,0.00013917,2]
[361663526,1747677052879,-210.0,0.00013917,2]
[361663527,1747677052889,-210.0,0.00013917,2]
[361663528,1747677052899,-210.0,0.00013917,2]
[361663529,1747677052908,-466.0,0.00013917,2]
[361663530,1747677052918,-466.0,0.00013917,2]
[361663531,1747677052928,-466.0,0.00013917,2]
[361663532,1747677052937,-466.0,0.00013917,2]
[361663533,1747677052947,-466.0,0.00013917,2]
[361663534,1747677052957,-466.0,0.00013917,2]
[361663535,1747677052967,-466.0,0.00013917,2]
[361663536,1747677052976,-466.0,0.00013917,2]
[361663537,1747677052986,-466.0,0.00013917,2]
[361663538,1747677052996,-466.0,0.00013917,2]
[361663539,1747677053006,-466.0,0.00013917,2]
[361663540,1747677053015,-466.0,0.00013917,2]
[361663541,1747677053025,-466.0,0.00013917,2]
[361663542,1747677053035,-466.0,0.00013917,2]
[361663543,1747677053045,-466.0,0.00013917,2]
[361663544,1747677053057,-466.0,0.00013917,2]
[361663545,1747677053067,-466.0,0.00013917,2]
[361663546,1747677053077,-466.0,0.00013917,2]
[361663547,1747677053412,-466.0,0.00013917,2]
[361663548,1747677053424,-466.0,0.00013917,2]
[361663549,1747677053433,-1000.0,0.00013951,2]
[361663550,1747677053443,-197.567943,0.00013969,2]
[361663551,1747677053453,-1000.0,0.0001397,2]
[361663552,1747677053462,-897.43740402,0.0001397,2]
[361663553,1747677053473,-1000.0,0.0001397,2]
[361663554,1747677053483,-1540.52188356,0.0001399,2]
[361663555,1747677053492,-26369.15038657,0.00013999,2]
[361663556,1747677053501,-151.0,0.00013999,2]
[361663557,1747677053511,-151.0,0.00013999,2]
[361663558,1747677053521,-151.0,0.00013999,2]
[361663559,1747677053530,-151.0,0.00013999,2]
[361663560,1747677053539,-400.06216523,0.00014,2]
[361663561,1747677053548,-994.02658769,0.00014,2]
[361663562,1747677053557,-5000.0,0.00014,2]
[361663563,1747677053567,-151.0,0.00014,2]
[361663564,1747677053576,-151.0,0.00014,2]
[361663565,1747677053586,-151.0,0.00014,2]
[361663566,1747677053596,-201.445797,0.00014,2]
[361663567,1747677053605,-6092.67514384,0.00014,3]
[361663568,1747677053615,-200.0,0.000141,2]
[361663569,1747677053624,-151.0,0.00014126,2]
[361663570,1747677053634,-250.0,0.00014142,2]
[361663571,1747677053643,-151.0,0.00014164,2]
[361663572,1747677053652,-2500.0,0.00014164,2]
[361663573,1747677053662,-2500.0,0.00014164,2]
[361663574,1747677053671,-2500.0,0.00014164,2]
[361663575,1747677053681,-2500.0,0.00014164,2]
[361663576,1747677053690,-587.0,0.00014219,2]
[361663577,1747677053699,-587.0,0.00014239,2]
[361663578,1747677053708,-1000.0,0.00014247,2]
[361663579,1747677053717,-474.81439784,0.00014247,2]
[361663580,1747677053727,-1000.0,0.00014247,2]
[361663581,1747677053736,-501.42254298,0.00014247,2]
[361663582,1747677053746,-1000.0,0.00014247,2]
[361663583,1747677053755,-500.0,0.00014247,2]
[361663584,1747677053765,-500.0,0.00014247,2]
[361663585,1747677053775,-1004.14832776,0.00014247,2]
[361663586,1747677053784,-1000.0,0.00014247,2]
[361663587,1747677053793,-501.75322059,0.00014247,2]
[361663588,1747677053802,-559.90537741,0.00014247,2]
[361663589,1747677053812,-1000.0,0.00014247,2]
[361663590,1747677053821,-500.0,0.00014247,2]
[361663591,1747677053831,-500.0,0.00014247,2]
[361663592,1747677053840,-530.07431616,0.00014247,2]
[361663593,1747677053850,-433.0,0.00014255,2]
[361663594,1747677053859,-2351.0,0.00014272,2]
[361663595,1747677053869,-151.0,0.00014285,2]
[361663596,1747677053878,-863.91,0.00014337,2]
[361663597,1747677053889,-9982.17281554,0.0001439,2]
[361663598,1747677053899,-164.72,0.00014499,2]
[361663599,1747677053908,-151.0,0.00014577,2]
[361663600,1747677053918,-223.0315306,0.00014631,2]
[361663601,1747677053927,-3000.0,0.00014712,2]
[361663602,1747677053936,-3000.0,0.00014712,2]
[361663603,1747677053946,-1714.69513898,0.00014712,2]
[361663604,1747677053955,-3000.0,0.00014712,2]
[361663605,1747677053965,-296.413,0.00014722,2]
[361663606,1747677053975,-1500.0,0.00014795,2]
[361663607,1747677053984,-288.18476771,0.00014795,2]
[361663608,1747677053994,-500.0,0.00014795,2]
[361663609,1747677054004,-1500.0,0.00014795,2]
[361663610,1747677054013,-500.0,0.00014795,2]
[361663611,1747677054027,-960.0,0.000148,4]
[361663612,1747677054036,-151.0,0.000148,2]
[361663613,1747677054047,-151.0,0.000148,2]
[361663614,1747677054057,-151.0,0.00014865,2]
[361663615,1747677054067,-151.0,0.00014875,2]
[361663616,1747677054077,-8643.61661061,0.000149,2]
[361663617,1747677054135,-5263.2799989,0.000149,2]
[361663618,1747677054147,-1695.62148258,0.000149,2]
[361663619,1747677054157,-151.0,0.000149,2]
[361663620,1747677054166,-347.330965,0.000149,2]
[361663621,1747677054177,-347.330965,0.000149,2]
[361663622,1747677054186,-151.0,0.000149,2]
[361663623,1747677054196,-151.0,0.000149,2]
[361663624,1747677054205,-151.0,0.000149,2]
[361663625,1747677054215,-230.426698,0.000149,2]
[361663626,1747677054227,-151.0,0.000149,2]
[361663627,1747677054237,-151.0,0.000149,2]
[361663628,1747677054248,-2703.16427338,0.000149,2]
[361663629,1747677054258,-151.0,0.00014936,2]
[361663630,1747677054268,-151.0,0.00014936,2]
[361663631,1747677054279,-344.39,0.00014954,2]
[361663632,1747677054288,-151.0,0.0001499,2]
[361663633,1747677054297,-279.139218,0.0001499,2]
[361663634,1747677054308,-155.077643,0.0001499,2]
[361663635,1747677054317,-155.077643,0.0001499,2]
[361663636,1747677054327,-669.106098,0.00014999,2]
[361663637,1747677054337,-12800.42301404,0.00015,7]
[361663638,1747677534730,-162.38764673,0.00011242,2]
[361663639,1747677536579,-217.41760271,0.00011242,2]
[361663640,1747677537822,-237.72438472,0.00011242,2]
[361663641,1747677540163,-46.78036584,0.00011242,2]
[361663642,1747677658904,169.27,0.00010448,2]
[361663643,1747677758279,150.0,0.00014,5]
[361664226,1747678238145,-200.0,0.000118,2]
[361664228,1747678238154,-250.0,0.000118,2]
[361664230,1747678238164,-106.12142121,0.000118,2]
[361664236,1747678238216,-93.87857879,0.000118,2]
[361664238,1747678238225,-500.0,0.000119,2]
[361664240,1747678238234,-58.05710089,0.00012202,2]
[361664243,1747678238245,-146.94289911,0.00012202,2]
[361664245,1747678238255,-165.48514611,0.00012213,2]
[361664247,1747678238263,-207.4,0.00012307,2]
[361664249,1747678238272,-1200.0,0.00012312,2]
[361664250,1747678238282,-150.0,0.00012313,2]
[361664252,1747678238292,-300.0,0.00012313,2]
[361664254,1747678238302,-799.0,0.00012315,2]
[361664256,1747678238311,-630.0,0.00012315,2]
[361664258,1747678238320,-920.0,0.00012315,2]
[361664260,1747678238329,-1256.0,0.00012315,2]
[361664262,1747678238339,-585.0,0.00012315,2]
[361664264,1747678238349,-1459.0,0.00012315,2]
[361664266,1747678238360,-554.0,0.00012315,2]
[361664268,1747678238370,-1149.0,0.00012315,2]
[361664270,1747678238380,-5943.0,0.00012315,2]
[361664272,1747678238389,-880.0,0.00012315,2]
[361664274,1747678238399,-6830.0,0.00012315,2]
[361664276,1747678238408,-154.0,0.00012315,2]
[361664278,1747678238417,-4043.0,0.00012315,2]
[361664280,1747678238426,-1000.0,0.00012317,2]
[361664282,1747678238435,-703.06632729,0.00012539,2]
[361664284,1747678238444,-150.0,0.0001264,2]
[361664286,1747678238453,-150.0,0.0001264,2]
[361664288,1747678238462,-150.0,0.0001264,2]
[361664290,1747678238472,-150.0,0.0001264,2]
[361664292,1747678238482,-934.0,0.0001264,2]
[361664294,1747678238492,-1308.0,0.0001264,2]
[361664296,1747678238501,-39584.78280373,0.0001278,2]
[361664298,1747678238510,-1315.0,0.00012842,2]
[361664300,1747678238520,-2000.0,0.00012896,2]
[361664302,1747678238529,-200.0,0.00012896,2]
[361664304,1747678238539,-200.0,0.00012979,2]
[361664306,1747678238548,-250.0,0.0001298,2]
[361664308,1747678238558,-200.0,0.0001298,2]
[361664310,1747678238568,-250.0,0.0001298,2]
[361664312,1747678238577,-200.0,0.0001298,2]
[361664314,1747678238586,-407.0,0.00013019,2]
[361664316,1747678238595,-173.74,0.00013114,2]
[361664318,1747678238605,-8878.04,0.00013148,2]
[361664320,1747678238615,-173.74,0.0001318,2]
[361664322,1747678238623,-164.72,0.00013254,2]
[361664324,1747678238633,-250.0,0.00013265,2]
[361664326,1747678238643,-5050.0,0.00013273,2]
[361664328,1747678238653,-2584.58,0.00013303,2]
[361664330,1747678238663,-5746.492,0.00013322,2]
[361664332,1747678238673,-500.0,0.00013322,2]
[361664334,1747678238682,-500.0,0.00013322,2]
[361664336,1747678238691,-500.0,0.00013322,2]
[361664338,1747678238700,-767.0,0.00013322,2]
[361664340,1747678238710,-769.0,0.00013322,2]
[361664342,1747678238720,-243.453,0.00013333,2]
[361664344,1747678238729,-769.0,0.00013349,2]
[361664346,1747678238738,-769.0,0.00013377,2]
[361664348,1747678238747,-183.76,0.00013382,2]
[361664350,1747678238756,-255.0,0.00013397,2]
[361664352,1747678238765,-769.0,0.00013404,2]
[361664354,1747678238774,-769.0,0.00013432,2]
[361664356,1747678238784,-769.0,0.00013459,2]
[361664358,1747678238794,-769.0,0.00013486,2]
[361664360,1747678238805,-664.31,0.00013506,2]
[361664362,1747678238814,-420.0,0.00013513,2]
[361664364,1747678238823,-769.0,0.00013514,2]
[361664366,1747678238832,-769.0,0.00013541,2]
[361664368,1747678238842,-1680.0,0.00013543,2]
[361664369,1747678238851,-769.0,0.00013569,2]
[361664370,1747678238859,-769.0,0.00013596,2]
[361664371,1747678238869,-769.0,0.00013623,2]
[361664372,1747678238878,-769.0,0.00013651,2]
[361664373,1747678238887,-500.0,0.00013673,2]
[361664374,1747678238895,-215.0738,0.00013676,2]
[361664375,1747678238904,-769.0,0.00013678,2]
[361664376,1747678238913,-450.12956591,0.00013689,2]
[361664377,1747678238922,-150.0,0.00013698,2]
[361664378,1747678238931,-950.0,0.00013699,2]
[361664379,1747678238941,-200.0,0.00013699,2]
[361664381,1747678238950,-1500.0,0.00013699,2]
[361664383,1747678238960,-69371.12048303,0.00013699,2]
[361664635,1747678241504,-841.0,0.00012315,2]
[361664637,1747678241514,-108408.76951697,0.00013699,2]
[361664639,1747678241524,-500.0,0.00013699,2]
[361664641,1747678241534,-500.0,0.00013699,2]
[361664642,1747678241543,-500.0,0.00013699,2]
[361664644,1747678241552,-500.0,0.00013699,2]
[361664646,1747678241561,-500.0,0.00013699,2]
[361664648,1747678241571,-500.0,0.00013699,2]
[361664651,1747678241580,-500.0,0.00013699,2]
[361664652,1747678241589,-500.0,0.00013699,2]
[361664654,1747678241598,-500.0,0.00013699,2]
[361664656,1747678241608,-500.0,0.00013699,2]
[361664658,1747678241617,-573.42570221,0.00013699,2]
[361664660,1747678241627,-500.0,0.00013699,2]
[361664662,1747678241636,-500.0,0.00013699,2]
[361664664,1747678241646,-1609.59921762,0.00013699,2]
[361664666,1747678241655,-1609.59921762,0.00013699,2]
[361664668,1747678241664,-1609.59921762,0.00013699,2]
[361664671,1747678241674,-1609.59921762,0.00013699,2]
[361664673,1747678241683,-1609.59921762,0.00013699,2]
[361664675,1747678241693,-1609.59921762,0.00013699,2]
[361664677,1747678241702,-1609.59921762,0.00013699,2]
[361664679,1747678241714,-1609.59921762,0.00013699,2]
[361664681,1747678241724,-1609.59921762,0.00013699,2]
[361664683,1747678241733,-1609.59921762,0.00013699,2]
[361664685,1747678241742,-1609.59921762,0.00013699,2]
[361664687,1747678241752,-1609.59921762,0.00013699,2]
[361664689,1747678241761,-1609.59921762,0.00013699,2]
[361664691,1747678241770,-1609.59921762,0.00013699,2]
[361664693,1747678241780,-1609.59921762,0.00013699,2]
[361664695,1747678241789,-1609.59921762,0.00013699,2]
[361664697,1747678241801,-1609.59921762,0.00013699,2]
[361664699,1747678241810,-1609.59921762,0.00013699,2]
[361664700,1747678241820,-1609.59921762,0.00013699,2]
[361664702,1747678241830,-1609.59921762,0.00013699,2]
[361664704,1747678241841,-1609.59921762,0.00013699,2]
[361664706,1747678241850,-1609.59921762,0.00013699,2]
[361664708,1747678241859,-1609.59921762,0.00013699,2]
[361664709,1747678241868,-1609.59921762,0.00013699,2]
[361664710,1747678241879,-1609.59921762,0.00013699,2]
[361664711,1747678241888,-1609.59921762,0.00013699,2]
[361664712,1747678241897,-1609.59921762,0.00013699,2]
[361664713,1747678241907,-1609.59921762,0.00013699,2]
[361664714,1747678241918,-1609.59921762,0.00013699,2]
[361664715,1747678241928,-1609.59921762,0.00013699,2]
[361664716,1747678241938,-1609.59921762,0.00013699,2]
[361664718,1747678241947,-1609.59921762,0.00013699,2]
[361664720,1747678241963,-1609.59921762,0.00013699,2]
[361664722,1747678241975,-1609.59921762,0.00013699,2]
[361664724,1747678241986,-1609.59921762,0.00013699,2]
[361664726,1747678241996,-1609.59921762,0.00013699,2]
[361664728,1747678242006,-1609.59921762,0.00013699,2]
[361664730,1747678242016,-1609.59921762,0.00013699,2]
[361664732,1747678242027,-1609.59921762,0.00013699,2]
[361664734,1747678242036,-1609.59921762,0.00013699,2]
[361664735,1747678242046,-1609.59921762,0.00013699,2]
[361664737,1747678242055,-1609.59921762,0.00013699,2]
[361664739,1747678242065,-1609.59921762,0.00013699,2]
[361664741,1747678242075,-1609.59921762,0.00013699,2]
[361664743,1747678242084,-1609.59921762,0.00013699,2]
[361664745,1747678242095,-1609.59921762,0.00013699,2]
[361664747,1747678242106,-1609.59921762,0.00013699,2]
[361664749,1747678242115,-1609.59921762,0.00013699,2]
[361664751,1747678242124,-1609.59921762,0.00013699,2]
[361664753,1747678242134,-1609.59921762,0.00013699,2]
[361664755,1747678242143,-1609.59921762,0.00013699,2]
[361664757,1747678242153,-1609.59921762,0.00013699,2]
[361664759,1747678242162,-1609.59921762,0.00013699,2]
[361664761,1747678242171,-1609.59921762,0.00013699,2]
[361664763,1747678242180,-1609.59921762,0.00013699,2]
[361664765,1747678242189,-1609.59921762,0.00013699,2]
[361664767,1747678242198,-1609.59921762,0.00013699,2]
[361664769,1747678242208,-1609.59921762,0.00013699,2]
[361664771,1747678242220,-500.0,0.00013699,2]
[361664773,1747678242229,-201.2875464,0.00013699,2]
[361664775,1747678242239,-500.0,0.00013699,2]
[361664777,1747678242248,-500.0,0.00013699,2]
[361664779,1747678242257,-500.0,0.00013699,2]
[361664781,1747678242266,-500.0,0.00013699,2]
[361664783,1747678242275,-500.0,0.00013699,2]
[361664785,1747678242285,-1588.83019546,0.00013699,2]
[361664787,1747678242294,-1588.83019546,0.00013699,2]
[361664789,1747678242303,-1588.83019546,0.00013699,2]
[361664791,1747678242312,-1588.83019546,0.00013699,2]
[361664793,1747678242321,-1588.83019546,0.00013699,2]
[361664795,1747678242330,-1588.83019546,0.00013699,2]
[361664797,1747678242340,-1588.83019546,0.00013699,2]
[361664798,1747678242350,-1588.83019546,0.00013699,2]
[361664800,1747678242359,-1588.83019546,0.00013699,2]
[361664802,1747678242368,-1588.83019546,0.00013699,2]
[361664805,1747678242378,-1588.83019546,0.00013699,2]
[361664807,1747678242389,-1588.83019546,0.00013699,2]
[361664809,1747678242399,-1588.83019546,0.00013699,2]
[361664811,1747678242409,-1588.83019546,0.00013699,2]
[361664813,1747678242420,-1588.83019546,0.00013699,2]
[361664815,1747678242430,-1588.83019546,0.00013699,2]
[361664817,1747678242439,-1588.83019546,0.00013699,2]
[361664819,1747678242450,-1588.83019546,0.00013699,2]
[361664821,1747678242459,-1588.83019546,0.00013699,2]
[361664823,1747678242471,-1588.83019546,0.00013699,2]
[361664825,1747678242480,-1588.83019546,0.00013699,2]
[361664827,1747678242490,-1588.83019546,0.00013699,2]
[361664829,1747678242499,-1588.83019546,0.00013699,2]
[361664831,1747678242508,-1588.83019546,0.00013699,2]
[361664833,1747678242517,-1588.83019546,0.00013699,2]
[361664835,1747678242526,-1588.83019546,0.00013699,2]
[361664837,1747678242536,-1588.83019546,0.00013699,2]
[361664839,1747678242546,-1588.83019546,0.00013699,2]
[361664841,1747678242555,-1588.83019546,0.00013699,2]
[361664843,1747678242564,-1588.83019546,0.00013699,2]
[361664845,1747678242574,-4249.85597643,0.00013699,2]
[361664846,1747678242584,-5260.05,0.000137,2]
[361664848,1747678242593,-769.0,0.00013706,2]
[361664850,1747678242602,-300.03201471,0.00013717,2]
[361664852,1747678242611,-769.0,0.00013733,2]
[361664854,1747678242621,-769.0,0.0001376,2]
[361664856,1747678242630,-769.0,0.00013788,2]
[361664858,1747678242640,-769.0,0.00013815,2]
[361664860,1747678242649,-171.31799998,0.00013817,2]
[361664862,1747678242658,-769.0,0.00013843,2]
[361664864,1747678242667,-5800.0,0.00013849,2]
[361664866,1747678242677,-1000.0,0.00013856,2]
[361664868,1747678242686,-5800.0,0.00013858,2]
[361664870,1747678242696,-31535.70682015,0.0001386,2]
[361664872,1747678242705,-5800.0,0.00013866,2]
[361664874,1747678242715,-769.0,0.0001387,2]
[361664876,1747678242725,-5800.0,0.00013875,2]
[361664878,1747678242734,-5800.0,0.00013883,2]
[361664880,1747678242743,-5260.05,0.0001389,2]
[361664882,1747678242753,-5800.0,0.00013892,2]
[361664884,1747678242762,-769.0,0.00013897,2]
[361664886,1747678242771,-2432.8478461,0.000139,2]
[361664888,1747678242780,-5800.0,0.000139,2]
[361664890,1747678242790,-5800.0,0.00013909,2]
[361664892,1747678242804,-5800.0,0.00013917,2]
[361664894,1747678242813,-769.0,0.00013925,2]
[361664896,1747678242822,-3025.52585269,0.0001394,2]
[361664898,1747678242831,-776.81237328,0.00013952,2]
[361664900,1747678242842,-300.03201452,0.00014032,2]
[361664903,1747678242851,-200.0,0.000141,2]
[361664906,1747678242861,-256.9069621,0.00014221,2]
[361664909,1747678242871,-205.0,0.0001428,4]
[361664912,1747678242881,-4198.60500927,0.00014281,2]
[361664915,1747678242891,-300.03201452,0.00014347,2]
[361664918,1747678242900,-433.0,0.00014579,2]
[361664921,1747678242909,-2056.44186414,0.0001466,2]
[361664924,1747678242918,-300.03201452,0.00014662,2]
[361664927,1747678242927,-864.76119748,0.00014664,2]
[361664929,1747678242936,-876.86532,0.00014699,2]
[361664932,1747678242945,-150.0,0.00014714,2]
[361664935,1747678242955,-150.0,0.00014715,2]
[361664938,1747678242965,-150.0,0.00014715,2]
[361664941,1747678242975,-150.0,0.00014717,2]
[361664944,1747678242985,-150.0,0.00014718,2]
[361664947,1747678242995,-150.0,0.00014718,2]
[361664951,1747678243003,-150.0,0.00014719,2]
[361664955,1747678243013,-150.0,0.0001472,2]
[361664957,1747678243022,-150.0,0.0001472,2]
[361664960,1747678243031,-150.0,0.00014725,2]
[361664963,1747678243042,-150.0,0.00014728,2]
[361664966,1747678243051,-500.0,0.00014731,2]
[361664969,1747678243061,-288.11858442,0.00014732,2]
[361664972,1747678243070,-150.0,0.00014733,2]
[361664975,1747678243079,-150.0,0.00014738,2]
[361664978,1747678243089,-150.0,0.00014738,2]
[361664981,1747678243099,-150.0,0.00014739,2]
[361664984,1747678243109,-150.0,0.0001474,2]
[361664987,1747678243118,-150.0,0.00014741,2]
[361664989,1747678243127,-150.0,0.00014744,2]
[361664992,1747678243136,-150.0,0.00014744,2]
[361664995,1747678243145,-150.0,0.0001475,2]
[361664998,1747678243155,-150.0,0.0001475,2]
[361665001,1747678243164,-150.0,0.00014754,2]
[361665004,1747678243173,-150.0,0.00014757,2]
[361665007,1747678243183,-500.54978892,0.00014758,2]
[361665008,1747678243192,-150.0,0.00014761,2]
[361665009,1747678243201,-150.0,0.00014762,2]
[361665010,1747678243211,-150.0,0.0001477,2]
[361665012,1747678243221,-150.0,0.00014771,2]
[361665014,1747678243230,-150.0,0.00014773,2]
[361665016,1747678243239,-150.0,0.00014773,2]
[361665017,1747678243248,-150.0,0.0001478,2]
[361665018,1747678243256,-150.0,0.0001478,2]
[361665020,1747678243265,-150.0,0.00014786,2]
[361665022,1747678243275,-150.0,0.00014787,2]
[361665024,1747678243284,-150.0,0.00014789,2]
[361665026,1747678243293,-150.0,0.00014794,2]
[361665028,1747678243302,-150.0,0.00014795,2]
[361665030,1747678243311,-150.0,0.00014798,2]
[361665032,1747678243320,-150.0,0.00014802,2]
[361665034,1747678243329,-150.0,0.00014803,2]
[361665036,1747678243338,-150.0,0.00014808,2]
[361665038,1747678243348,-150.0,0.00014808,2]
[361665040,1747678243357,-150.0,0.00014814,2]
[361665042,1747678243366,-150.0,0.00014816,2]
[361665044,1747678243375,-150.0,0.00014817,2]
[361665046,1747678243384,-150.0,0.00014817,2]
[361665048,1747678243393,-150.0,0.00014824,2]
[361665049,1747678243402,-150.0,0.0001483,2]
[361665050,1747678243411,-150.0,0.0001483,2]